bitfinex/quotes_ETHUSD_20250523
["timestamp","ask_amount","ask_price","bid_price","bid_amount"]
[1748003798484,11.756,2551.2,2550.3,3.92098278]
[1748003798680,15.67575659,2551.2,2550.6,3.92057427]
[1748003798880,11.756,2551.1,2550.7,27.128]
[1748003799108,11.756,2551.1,2550.7,47.97643735]
[1748003799311,11.756,2551.1,2550.8,3.92033073]
[1748003799511,12.9316,2551.1,2550.2,27.126]
[1748003799711,8.0,2550.7,2550.2,27.126]
[1748003799912,3.92018503,2550.9,2550.2,27.126]
[1748003800189,3.92018503,2550.9,2549.9,16.928]
[1748003800190,3.92156862,2550.0,2549.9,16.928]
[1748003800388,3.92203004,2549.7,2549.6,27.126]
[1748003800933,3.92180844,2549.9,2549.6,27.126]
[1748003801086,11.755,2550.4,2549.7,3.92203004]
[1748003801283,11.755,2550.4,2549.6,27.126]
[1748003801516,11.755,2550.4,2549.5,1.5998]
[1748003801712,3.92171143,2550.0,2549.6,27.126]
[1748003801916,2.347,2550.3,2549.8,3.92183914]
[1748003802193,5.42910922,2550.5,2549.6,27.126]
[1748003802194,15.67589784,2550.5,2549.6,27.126]
[1748003802502,1.5066,2551.3,2549.8,8.0]
[1748003802703,11.756,2551.2,2550.2,1.5992]
[1748003802903,11.756,2551.2,2550.3,44.057]
[1748003803311,11.756,2551.2,2550.8,3.92018993]
[1748003803623,11.756,2551.2,2551.0,3.92002369]
[1748003803803,11.756,2551.2,2551.1,27.128]
[1748003804199,15.67572405,2551.2,2551.1,27.128]
[1748003804410,11.756,2551.2,2551.1,27.128]
[1748003804626,13.32355117,2551.2,2551.1,27.128]
[1748003804931,17.2433323,2551.2,2550.6,27.128]
[1748003805125,13.32355117,2551.2,2550.6,27.128]
[1748003805306,3.92004635,2551.0,2550.6,27.128]
[1748003805629,3.92020348,2550.9,2550.3,16.929]
[1748003805941,15.674352,2550.8,2550.4,27.123]
[1748003806240,11.754,2550.8,2550.4,31.04394031]
[1748003806437,11.754,2550.7,2550.6,3.92064612]
[1748003806637,3.92011108,2551.0,2550.6,0.32728871]
[1748003806819,11.754,2550.7,2550.6,0.32728871]
[1748003807023,1.5204,2551.7,2550.6,0.32728871]
[1748003807334,3.91944334,2551.4,2550.9,3.92008108]
[1748003807626,3.91926317,2551.5,2550.8,3.92023799]
[1748003807828,11.754,2551.6,2550.8,0.32726305]
[1748003808131,11.754,2551.6,2551.0,3.9198951]
[1748003808431,8.0,2551.5,2550.9,27.121]
[1748003808636,2.51933837,2551.5,2550.9,27.121]
[1748003808931,2.51933837,2551.5,2550.9,31.04108125]
[1748003809130,11.754,2551.6,2551.0,3.92003136]
[1748003809292,3.91940846,2551.5,2551.0,3.92000887]
[1748003809692,3.9197265,2551.2,2550.9,27.121]
[1748003810033,3.91966536,2551.3,2551.0,27.121]
[1748003810238,3.92018503,2550.9,2550.8,0.32726305]
[1748003810447,11.753,2551.0,2550.9,27.121]
[1748003811321,11.753,2551.0,2550.9,31.04118503]
[1748003811918,1.5204,2551.7,2550.9,27.44825022]
[1748003812097,11.752,2551.6,2551.0,0.3272374]
[1748003812297,1.6118,2552.9,2551.8,1.6179]
[1748003812508,1.651,2553.2,2551.9,44.0811818]
[1748003812707,1.651,2553.2,2552.2,8.0]
[1748003812913,12.31244118,2553.3,2552.3,0.03917742]
[1748003813106,11.752,2553.3,2552.6,5.42546267]
[1748003813309,1.56683682,2553.2,2552.0,8.0]
[1748003813521,3.91797964,2552.4,2552.1,27.119]
[1748003813733,3.91809288,2552.3,2552.1,27.119]
[1748003813935,15.6697518,2552.5,2552.1,27.119]
[1748003814250,11.752,2552.5,2552.1,27.119]
[1748003814932,3.91759633,2552.6,2552.1,27.119]
[1748003815133,4.70106268,2552.6,2552.1,27.119]
[1748003815337,4.70106268,2552.6,2551.9,16.923]
[1748003815338,0.78348845,2552.6,2551.9,16.923]
[1748003815634,3.91849529,2552.0,2551.9,16.923]
[1748003815936,15.66749529,2552.0,2551.9,16.923]
[1748003816405,3.91849529,2552.0,2551.9,16.923]
[1748003816739,3.91849529,2552.0,2551.9,43.664]
[1748003817138,6.02899632,2552.0,2551.9,43.664]
[1748003817360,3.91836221,2552.1,2551.9,43.664]
[1748003817650,3.91840718,2552.1,2551.9,43.664]
[1748003817807,3.91849529,2552.0,2551.9,43.664]
[1748003818202,3.91784084,2552.5,2551.9,43.664]
[1748003818431,3.91849529,2552.0,2551.9,43.664]
[1748003819751,3.91849529,2552.0,2551.9,16.923]
[1748003820621,3.91972405,2551.2,2551.0,0.3272374]
[1748003820804,16.0598501,2551.1,2551.0,0.3272374]
[1748003821007,24.6098501,2551.1,2551.0,0.3272374]
[1748003821430,24.96798444,2551.1,2551.0,0.3272374]
[1748003821642,13.21998444,2551.1,2551.0,0.3272374]
[1748003821809,24.96798444,2551.1,2551.0,0.3272374]
[1748003822148,26.47298444,2551.1,2551.0,0.3272374]
[1748003822701,3.92126107,2550.2,2550.1,16.917]
[1748003823060,15.66936966,2550.2,2549.6,26.74]
[1748003823243,15.66936966,2550.2,2549.7,26.745]
[1748003823244,15.66930712,2550.2,2549.7,26.745]
[1748003823536,3.92249156,2549.4,2549.3,16.917]
[1748003823761,11.75,2549.4,2549.3,16.917]
[1748003823923,15.67249156,2549.4,2549.3,16.917]
[1748003824334,17.23974072,2549.4,2549.3,16.917]
[1748003824536,3.92264543,2549.3,2548.7,1.5084]
[1748003824780,3.92326101,2548.9,2548.8,26.745]
[1748003824944,3.92293892,2549.2,2548.8,26.745]
[1748003825296,3.9219861,2549.8,2548.8,26.745]
[1748003825434,11.75,2549.4,2549.0,3.92301228]
[1748003825635,11.75,2549.4,2548.8,26.745]
[1748003826072,3.92307814,2549.1,2548.8,26.745]
[1748003826270,11.753,2549.0,2548.8,30.66840152]
[1748003826532,11.753,2549.1,2548.8,26.745]
[1748003827446,15.67583226,2549.2,2548.8,26.745]
[1748003827632,13.71283964,2549.2,2548.8,26.745]
[1748003827833,17.63567214,2549.2,2548.8,26.745]
[1748003828032,11.753,2549.2,2548.8,26.745]
[1748003828336,11.753,2549.1,2548.8,26.745]
[1748003829374,11.753,2549.0,2548.8,26.745]
[1748003829537,3.92274732,2549.3,2548.8,30.66839357]
[1748003829741,11.755,2549.2,2548.8,26.745]
[1748003830075,14.0,2549.9,2548.8,26.745]
[1748003830286,3.92220681,2549.6,2549.1,3.92287523]
[1748003830442,3.92220681,2549.6,2548.8,26.745]
[1748003830657,3.92210052,2549.7,2548.8,26.745]
[1748003831009,6.0,2549.9,2549.4,3.92244357]
[1748003831166,11.755,2549.8,2549.7,3.92203004]
[1748003831368,11.755,2549.9,2549.5,43.683]
[1748003831591,3.92189103,2549.8,2549.5,43.683]
[1748003831792,11.755,2549.9,2549.5,47.60531524]
[1748003832010,1.5789,2550.5,2549.9,3.9216318]
[1748003832211,1.5993,2550.9,2549.9,3.92172242]
[1748003832377,1.5993,2550.9,2549.8,1.5949]
[1748003832378,1.6191,2551.2,2550.0,11.92156862]
[1748003832565,11.755,2551.1,2550.2,1.5701]
[1748003832760,15.67491105,2551.1,2550.3,26.757]
[1748003833103,5.48760609,2551.0,2550.4,26.757]
[1748003833267,1.56749111,2551.0,2550.4,26.757]
[1748003833603,0.56044118,2551.4,2550.4,26.757]
[1748003833799,3.91983917,2551.2,2550.6,3.92054529]
[1748003833969,3.91981613,2551.2,2550.7,3.92040882]
[1748003834170,11.755,2551.3,2550.5,16.928]
[1748003834382,15.67458408,2551.3,2550.6,3.92061013]
[1748003834708,3.92028243,2550.9,2550.5,16.928]
[1748003834894,3.92063574,2550.7,2550.5,16.928]
[1748003835207,3.92171531,2550.0,2549.8,26.754]
[1748003835411,15.67672242,2549.9,2549.8,26.754]
[1748003835579,17.63656619,2549.9,2549.8,26.754]
[1748003836324,1.649,2550.0,2549.8,26.754]
[1748003836467,15.67572242,2549.9,2549.8,26.754]
[1748003836666,1.6293,2550.4,2549.8,26.754]
[1748003836970,3.9214999,2550.1,2549.8,26.754]
[1748003837165,11.754,2550.3,2549.8,26.754]
[1748003837418,3.92138803,2550.2,2549.8,26.754]
[1748003837580,3.92138803,2550.2,2549.9,26.754]
[1748003837581,3.92137312,2550.2,2549.9,26.754]
[1748003837966,15.67516213,2550.3,2549.9,26.754]
[1748003838391,11.754,2550.3,2549.9,26.754]
[1748003838589,1.1754,2550.3,2549.9,26.754]
[1748003838907,11.754,2550.2,2549.9,26.754]
[1748003839109,6.0,2550.8,2550.0,1.6479]
[1748003839110,11.754,2550.3,2550.0,1.6479]
[1748003839542,6.0,2550.8,2550.7,3.92049241]
[1748003839743,11.754,2550.9,2550.7,26.755]
[1748003840192,3.9194671,2551.4,2550.7,49.12168711]
[1748003840387,3.91982273,2551.2,2550.8,26.755]
[1748003840638,0.39194671,2551.4,2550.8,26.755]
[1748003840834,15.67364763,2551.3,2550.8,30.67525902]
[1748003841143,11.754,2551.3,2550.9,3.92010445]
[1748003841306,11.754,2551.3,2551.0,3.91998975]
[1748003841514,3.91912309,2551.6,2551.1,3.91983894]
[1748003841816,11.753,2551.5,2550.8,30.67532162]
[1748003842024,11.753,2551.5,2551.2,3.91967348]
[1748003842224,11.753,2551.5,2551.4,3.91941679]
[1748003842440,11.753,2551.5,2551.2,3.91964657]
[1748003842650,15.67234197,2551.5,2550.7,18.4463]
[1748003842793,3.92028639,2550.9,2550.7,16.927]
[1748003842990,11.753,2550.8,2550.7,16.927]
[1748003843258,15.67333871,2550.8,2550.7,16.927]
[1748003843446,11.753,2550.8,2550.7,16.927]
[1748003843656,1.6199,2551.4,2550.7,16.927]
[1748003843859,3.0,2551.3,2551.2,3.91972405]
[1748003844065,3.0,2551.3,2551.2,30.67072405]
[1748003844369,3.0,2551.3,2551.2,40.24712405]
[1748003844514,1.03125,2551.3,2551.2,40.24712405]
[1748003844715,11.753,2552.4,2551.8,1.5786]
[1748003844919,13.32007282,2552.4,2551.9,43.308]
[1748003845133,11.753,2552.4,2551.9,16.924]
[1748003845355,0.55,2552.2,2551.2,26.384]
[1748003845554,3.91972405,2551.2,2550.1,1.5802]
[1748003845755,11.92008166,2551.0,2550.0,26.384]
[1748003846056,15.6732449,2550.9,2550.0,26.384]
[1748003846261,11.753,2550.9,2550.0,26.384]
[1748003846468,1.5793,2551.3,2550.1,26.384]
[1748003846621,15.67275878,2551.2,2550.5,3.92073408]
[1748003846967,3.92030444,2550.9,2550.3,5.53687637]
[1748003847174,11.753,2551.2,2550.7,3.92046053]
[1748003847338,11.753,2551.4,2550.8,26.384]
[1748003847539,3.92014365,2551.0,2550.8,26.384]
[1748003847750,3.92018503,2550.9,2550.8,26.384]
[1748003847953,11.753,2551.4,2550.3,9.6158]
[1748003848235,3.92050719,2550.7,2550.4,26.384]
[1748003848434,3.92079984,2550.5,2550.4,26.384]
[1748003848677,11.753,2550.8,2550.4,26.384]
[1748003848878,3.92057532,2550.7,2550.4,26.384]
[1748003849041,3.91972405,2551.2,2550.4,26.384]
[1748003849241,3.9207179,2550.6,2550.4,26.384]
[1748003849458,11.753,2551.1,2550.4,26.384]
[1748003849777,1.6457,2551.3,2550.4,26.384]
[1748003849778,3.92005585,2551.0,2550.4,30.3048835]
[1748003849978,11.753,2551.0,2550.4,26.384]
[1748003850182,11.753,2551.0,2550.0,1.5734]
[1748003850475,11.753,2551.0,2550.5,26.383]
[1748003850476,3.92061531,2550.7,2550.5,26.383]
[1748003850775,3.92061531,2550.7,2550.0,13.49491734]
[1748003850776,3.92085524,2550.5,2550.0,9.5734]
[1748003850957,3.92057427,2550.7,2550.2,8.0]
[1748003851152,3.92043743,2550.8,2550.2,11.92118168]
[1748003851352,3.92033871,2550.8,2550.2,8.0]
[1748003851568,3.92095357,2550.4,2550.3,26.383]
[1748003851768,3.92126107,2550.2,2550.1,16.924]
[1748003852950,11.753,2550.4,2550.1,16.924]
[1748003853295,1.5797,2550.5,2550.1,16.924]
[1748003853581,3.9205314,2550.7,2550.2,3.92113905]
[1748003853786,11.753,2550.6,2550.2,3.92126107]
[1748003854086,11.753,2550.5,2550.2,3.92123049]
[1748003854385,11.753,2550.5,2550.4,3.92095357]
[1748003854544,11.753,2550.7,2550.4,3.92095357]
[1748003854746,1.6121,2551.2,2550.7,3.9203799]
[1748003854941,3.92012819,2551.0,2550.5,3.9207903]
[1748003855389,11.753,2551.1,2550.4,3.92090711]
[1748003855552,3.92004519,2551.0,2550.5,3.92071498]
[1748003855752,15.67296169,2551.1,2550.6,3.92063146]
[1748003855943,1.6121,2551.2,2550.3,26.384]
[1748003856149,11.752,2551.1,2550.3,26.334]
[1748003856350,3.91928105,2551.5,2551.0,3.91993608]
[1748003856549,11.752,2551.4,2551.0,26.383]
[1748003856846,3.91957069,2551.3,2551.0,26.383]
[1748003857073,11.752,2551.4,2551.0,26.383]
[1748003857271,4.46972405,2551.2,2550.4,26.383]
[1748003857576,7.6001,2551.2,2550.4,26.383]
[1748003857761,3.92031084,2550.9,2550.4,26.383]
[1748003857974,11.752,2550.8,2550.4,30.30388099]
[1748003858175,7.6001,2551.2,2550.4,26.383]
[1748003858469,11.752,2551.1,2550.4,26.383]
[1748003858675,11.752,2551.0,2550.7,3.92040485]
[1748003858883,3.91950308,2551.4,2550.9,3.92009309]
[1748003859099,15.67159888,2551.3,2550.7,1.64]
[1748003859385,15.67162984,2551.3,2550.8,3.92018583]
[1748003859548,15.67162984,2551.3,2550.8,3.92033871]
[1748003859750,3.91962984,2551.3,2550.8,3.92033871]
[1748003860081,11.752,2551.2,2550.9,3.92016948]
[1748003860287,11.752,2551.2,2550.7,1.64]
[1748003860484,11.752,2551.2,2550.9,3.92003314]
[1748003860674,11.752,2551.2,2550.9,3.92011756]
[1748003860988,11.752,2551.2,2550.5,3.92072981]
[1748003861145,11.752,2551.2,2550.4,28.0486]
[1748003861146,3.91998518,2551.1,2550.4,28.0486]
[1748003861349,3.91998518,2551.1,2550.6,3.92055771]
[1748003861571,3.91995153,2551.1,2550.4,31.96944461]
[1748003861791,3.920259,2550.9,2550.4,31.96945979]
[1748003861990,3.920111,2551.0,2550.5,3.92075345]
[1748003862196,3.9199335,2551.1,2550.6,3.92057408]
[1748003862393,11.752,2551.0,2550.7,3.92044313]
[1748003862597,11.752,2551.0,2550.6,3.92054222]
[1748003862804,11.752,2551.0,2550.6,3.92057295]
[1748003863096,3.92056503,2550.7,2550.4,26.381]
[1748003863661,1.5993,2550.9,2550.4,26.381]
[1748003863994,5.51955951,2550.9,2550.4,30.30188777]
[1748003864199,3.92036292,2550.8,2550.4,26.381]
[1748003864362,11.752,2551.0,2550.4,26.381]
[1748003864562,3.9204266,2550.8,2550.4,26.381]
[1748003864763,11.751,2550.9,2550.4,26.381]
[1748003865099,16.84640481,2550.9,2550.4,26.381]
[1748003865301,11.751,2550.8,2550.5,3.92074953]
[1748003865462,3.91996773,2551.1,2550.6,3.92060389]
[1748003865663,6.56044118,2552.1,2551.1,3.91978822]
[1748003865664,11.752,2551.4,2551.1,3.91978822]
[1748003865867,11.752,2551.4,2551.2,30.30070784]
[1748003866091,6.0,2551.5,2551.3,26.381]
[1748003866404,17.752,2551.5,2551.4,26.381]
[1748003866703,3.91957041,2551.3,2551.2,26.381]
[1748003867402,6.0,2551.5,2551.2,26.381]
[1748003867902,11.751,2551.4,2551.2,26.381]
[1748003868089,15.67049951,2551.4,2551.2,26.381]
[1748003868289,3.91957041,2551.3,2551.2,26.381]
[1748003868808,6.47857203,2551.3,2551.2,26.381]
[1748003868967,6.47857203,2551.3,2551.1,16.923]
[1748003868968,3.91972405,2551.2,2551.1,16.923]
[1748003869302,3.91963819,2551.3,2551.1,16.923]
[1748003869599,0.36247008,2551.3,2551.1,16.923]
[1748003869765,4.28206468,2551.3,2551.1,16.923]
[1748003869966,3.91972405,2551.2,2551.1,16.923]
[1748003870164,4.28212029,2551.3,2551.1,16.923]
[1748003870366,3.91972405,2551.2,2551.1,16.923]
[1748003871368,3.9194923,2551.4,2551.1,16.923]
[1748003871567,11.751,2551.3,2551.1,16.923]
[1748003872115,11.751,2551.2,2551.1,20.84281332]
[1748003872316,11.751,2551.2,2551.1,16.873]
[1748003872488,11.751,2551.2,2551.1,16.87124817]
[1748003873107,16.84582405,2551.2,2551.1,16.87124817]
[1748003873873,11.751,2551.2,2551.1,16.87124817]
[1748003874515,15.67072405,2551.2,2551.1,16.87124817]
[1748003875725,11.751,2551.2,2551.1,16.87124817]
[1748003875904,15.67072405,2551.2,2551.1,16.87124817]
[1748003876218,11.75,2551.2,2551.1,16.87124817]
[1748003876421,15.66972405,2551.2,2551.1,16.87124817]
[1748003878228,17.62866195,2551.2,2551.1,16.87124817]
[1748003878426,15.66972405,2551.2,2551.1,16.87124817]
[1748003878730,11.75,2551.2,2551.1,16.87124817]
[1748003878913,15.66972405,2551.2,2551.1,16.87124817]
[1748003879904,3.91972405,2551.2,2551.1,16.87124817]
[1748003880102,11.75,2551.2,2551.1,16.87124817]
[1748003880491,1.5897,2551.6,2551.1,16.87124817]
[1748003880691,3.91972405,2551.2,2551.1,42.87824817]
[1748003881003,3.92073157,2550.6,2550.4,8.0]
[1748003881199,11.75,2550.6,2550.5,26.007]
[1748003881593,0.78393254,2551.2,2550.5,26.007]
[1748003881594,0.55,2551.7,2550.5,26.007]
[1748003881793,11.75,2551.4,2550.7,3.92042278]
[1748003882019,3.91997053,2551.1,2550.6,11.92056563]
[1748003882302,3.92043045,2550.8,2550.5,26.007]
[1748003882628,5.50885982,2551.6,2550.6,11.92064612]
[1748003882855,1.5897,2551.6,2550.7,1.5194]
[1748003882989,1.5897,2551.6,2550.3,16.921]
[1748003882990,15.6693352,2551.5,2550.5,26.007]
[1748003883194,11.75,2551.5,2550.5,26.007]
[1748003883399,5.6452991,2551.4,2550.5,26.007]
[1748003883733,3.91996007,2551.1,2550.6,3.9205671]
[1748003883931,11.75,2551.0,2550.6,11.92051183]
[1748003884323,11.75,2551.0,2550.9,3.92018503]
[1748003884509,1.5897,2551.6,2551.1,3.91987769]
[1748003884510,11.75,2551.2,2551.1,3.91987769]
[1748003884833,3.91928693,2551.5,2551.1,3.91985367]
[1748003885142,11.75,2551.2,2550.8,1.6185]
[1748003885450,11.75,2551.2,2551.0,3.91996185]
[1748003885731,0.46239559,2552.1,2551.6,1.5939]
[1748003885910,0.46239559,2552.1,2552.0,3.91849529]
[1748003886504,0.56044118,2552.3,2552.0,26.006]
[1748003886699,11.75,2552.4,2552.3,3.91799579]
[1748003886902,0.35998669,2552.7,2552.0,26.006]
[1748003886903,11.75,2552.5,2552.2,5.46068822]
[1748003887109,11.75,2552.5,2552.2,5.46055675]
[1748003887310,11.75,2552.5,2552.4,3.9178812]
[1748003887612,1.9482384,2552.8,2552.6,11.91756767]
[1748003887819,1.9482384,2552.8,2552.7,29.92342077]
[1748003888032,1.9482384,2552.8,2552.7,46.84342077]
[1748003888431,1.9482384,2552.8,2552.7,18.5091]
[1748003888630,11.75,2553.4,2552.7,48.43252077]
[1748003888829,15.66650857,2553.3,2552.7,48.43246633]
[1748003889037,3.91674578,2553.2,2552.7,44.5151]
[1748003889237,3.91665361,2553.2,2552.7,44.5151]
[1748003889433,15.66657602,2553.3,2552.7,48.43241539]
[1748003889636,15.66656256,2553.3,2552.7,48.43249135]
[1748003889833,3.91665526,2553.2,2552.7,48.43250322]
[1748003890036,11.75,2553.3,2552.7,44.5151]
[1748003890222,3.91688774,2553.1,2552.7,44.5151]
[1748003890426,3.91683846,2553.1,2552.7,44.5151]
[1748003890719,0.22567555,2553.4,2553.3,3.91650021]
[1748003891032,11.747,2553.9,2553.4,3.91625926]
[1748003891221,11.747,2553.9,2553.5,26.0]
[1748003891927,5.86404406,2553.8,2553.6,25.994]
[1748003892126,1.9482384,2553.8,2553.6,25.994]
[1748003892322,3.91656397,2553.3,2553.2,25.994]
[1748003892550,3.91656397,2553.3,2552.7,18.4891]
[1748003892551,11.747,2553.3,2552.3,1.5691]
[1748003892722,3.91732895,2552.8,2552.3,1.5691]
[1748003892924,3.9170591,2553.0,2552.3,1.5691]
[1748003893123,15.66126465,2552.9,2552.3,5.48710982]
[1748003893324,11.744,2552.9,2552.5,3.91771736]
[1748003893548,11.744,2552.9,2552.3,9.5691]
[1748003893748,1.6174,2553.6,2552.7,3.91730631]
[1748003893749,11.744,2553.1,2552.7,3.91730631]
[1748003894050,1.6174,2553.6,2552.9,3.91703202]
[1748003894253,11.744,2553.5,2553.0,42.906]
[1748003894458,11.744,2553.5,2553.3,3.91638072]
[1748003894766,11.744,2553.9,2553.4,3.91623758]
[1748003895049,15.65937619,2554.1,2553.4,3.91629126]
[1748003895248,5.42498033,2554.2,2553.4,3.91629126]
[1748003895249,3.91520314,2554.2,2553.7,3.91581489]
[1748003895417,3.91519952,2554.2,2553.8,25.991]
[1748003896149,13.2691,2554.6,2553.9,1.6403]
[1748003896349,3.91473909,2554.5,2553.9,18.5503]
[1748003896539,3.91473909,2554.5,2554.0,3.91540105]
[1748003896853,3.91481365,2554.4,2553.9,18.5503]
[1748003897144,13.2691,2554.6,2553.9,16.91]
[1748003897145,3.9151912,2554.2,2553.9,16.91]
[1748003897346,17.18362624,2554.6,2554.0,25.991]
[1748003897347,1.71839137,2554.4,2554.0,25.991]
[1748003897522,11.743,2554.6,2554.0,25.991]
[1748003897718,3.91479221,2554.5,2554.4,0.00459999]
[1748003898131,15.6576604,2554.5,2554.4,0.00459999]
[1748003898648,11.743,2554.5,2554.4,0.00459999]
[1748003898835,11.741,2554.5,2554.4,0.00459999]
[1748003899037,15.6556604,2554.5,2554.4,0.00459999]
[1748003899594,11.741,2554.5,2554.4,0.00459999]
[1748003899742,15.6556604,2554.5,2554.4,0.00459999]
[1748003900154,11.741,2554.5,2554.4,0.00459999]
[1748003900382,15.6556604,2554.5,2554.4,0.00459999]
[1748003900677,3.91481365,2554.4,2554.3,25.986]
[1748003900839,1.5947,2554.9,2554.3,25.986]
[1748003901042,11.741,2554.8,2554.3,25.986]
[1748003901238,15.65546779,2554.7,2554.3,25.986]
[1748003901441,3.91461051,2554.6,2554.3,25.986]
[1748003901680,3.91469387,2554.5,2554.3,25.986]
[1748003901878,3.91469387,2554.5,2554.0,0.00459999]
[1748003902178,11.741,2554.7,2554.1,25.982]
[1748003902376,3.91498205,2554.3,2554.1,25.982]
[1748003902577,3.9149047,2554.4,2554.2,25.982]
[1748003902885,3.91496691,2554.3,2554.2,25.982]
[1748003903269,3.91488547,2554.4,2554.2,25.982]
[1748003903591,3.91036692,2554.3,2554.2,25.982]
[1748003903945,11.738,2554.3,2554.2,25.982]
[1748003904140,14.5473,2554.3,2553.5,25.979]
[1748003904402,2.8093,2554.3,2553.5,25.979]
[1748003904598,3.91632327,2553.5,2553.1,8.0]
[1748003904906,11.738,2553.5,2553.4,3.91634683]
[1748003905046,11.738,2553.6,2553.5,11.91608212]
[1748003905245,11.738,2553.8,2553.5,11.9161203]
[1748003905483,11.738,2553.8,2553.6,3.91592168]
[1748003905981,11.738,2554.1,2553.6,5.41829771]
[1748003906183,1.6223,2554.6,2553.5,8.0]
[1748003906347,3.91486388,2554.4,2553.7,3.91579696]
[1748003906551,3.91504672,2554.3,2553.8,3.91563891]
[1748003906863,3.91541306,2554.1,2553.5,8.0]
[1748003907062,15.65349681,2554.0,2553.6,25.601]
[1748003907396,3.91577165,2553.8,2553.6,25.601]
[1748003907692,3.91558009,2553.9,2553.6,25.601]
[1748003908206,11.737,2554.0,2553.6,25.601]
[1748003908706,15.65247825,2554.0,2553.6,25.601]
[1748003908903,3.9157598,2553.8,2553.7,25.601]
[1748003909419,3.91680701,2553.1,2553.0,16.902]
[1748003909698,11.737,2553.1,2552.9,29.51809871]
[1748003909900,11.737,2553.1,2553.0,3.91683755]
[1748003910107,11.737,2553.1,2552.9,29.51803445]
[1748003910316,1.5489,2553.9,2552.9,25.601]
[1748003910455,1.5489,2553.9,2553.5,3.91619345]
[1748003910760,11.737,2554.0,2553.6,25.6]
[1748003911110,1.5489,2554.2,2553.4,9.6471]
[1748003911111,11.737,2553.9,2553.4,9.6471]
[1748003911253,3.91573341,2553.8,2553.6,25.6]
[1748003911451,3.91602296,2553.7,2553.3,16.902]
[1748003911687,3.91634683,2553.4,2553.3,16.902]
[1748003911894,15.65334683,2553.4,2553.3,42.502]
[1748003912191,11.737,2553.4,2553.3,42.502]
[1748003912760,11.737,2554.8,2553.3,42.502]
[1748003912983,3.91444458,2554.7,2553.4,25.6]
[1748003913256,3.91605797,2553.6,2553.4,25.601]
[1748003913479,3.91542678,2554.0,2553.4,25.601]
[1748003913659,3.91597129,2553.7,2553.0,1.6471]
[1748003913855,3.91597129,2553.7,2552.5,16.902]
[1748003913856,1.5169,2553.5,2552.5,42.503]
[1748003914175,3.91736602,2552.8,2552.5,42.503]
[1748003914367,11.737,2552.7,2552.6,3.9175033]
[1748003914691,3.9163725,2553.4,2552.6,3.91754289]
[1748003914892,1.5169,2553.5,2552.5,42.503]
[1748003915096,3.91364373,2555.2,2553.3,3.91641464]
[1748003915097,13.275,2553.8,2553.3,3.91641464]
[1748003915294,1.538,2553.8,2553.4,25.601]
[1748003915501,11.737,2553.7,2553.6,3.9160401]
[1748003915792,11.737,2554.2,2553.6,25.601]
[1748003916005,3.9153146,2554.1,2553.6,29.51701462]
[1748003916209,11.737,2554.2,2553.6,25.601]
[1748003916388,3.91554334,2554.0,2553.6,25.601]
[1748003916555,11.737,2554.2,2553.6,25.601]
[1748003916894,3.91528535,2554.1,2553.6,29.51695025]
[1748003917191,11.738,2554.1,2553.6,25.601]
[1748003917392,11.738,2554.1,2553.6,29.5169789]
[1748003917697,11.738,2554.1,2553.6,25.601]
[1748003917893,3.91555276,2554.0,2553.6,25.601]
[1748003918082,3.91559834,2553.9,2553.6,25.601]
[1748003918282,15.65328217,2554.1,2553.6,25.601]
[1748003918283,3.91553054,2554.0,2553.6,25.601]
[1748003918585,5.43910169,2553.9,2553.6,25.601]
[1748003918783,3.91582268,2553.8,2553.6,25.601]
[1748003918982,1.5235,2553.9,2553.6,25.601]
[1748003918983,11.738,2553.7,2553.6,25.601]
[1748003919181,11.738,2553.9,2553.7,3.91584443]
[1748003919385,11.738,2553.9,2553.6,29.51696404]
[1748003919583,11.738,2553.9,2553.6,25.601]
[1748003919780,11.738,2553.9,2553.6,29.51700063]
[1748003920096,11.737,2553.9,2553.6,25.601]
[1748003920403,1.6315,2554.6,2553.6,29.51702195]
[1748003920787,3.91478875,2554.5,2554.0,3.91542135]
[1748003921093,3.91491231,2554.4,2553.9,3.91554543]
[1748003921274,5.54609239,2554.6,2554.0,3.91538398]
[1748003921468,3.91469567,2554.5,2553.8,1.5599]
[1748003921781,3.91480364,2554.5,2553.8,1.5599]
[1748003921982,13.3685,2554.6,2553.8,1.5599]
[1748003922187,5.54609756,2554.6,2554.1,3.91518987]
[1748003922385,0.36192026,2554.5,2554.2,3.91509365]
[1748003922591,0.36192026,2554.5,2553.9,25.599]
[1748003922592,12.09892026,2554.5,2553.9,25.599]
[1748003922792,12.09892026,2554.5,2554.0,3.91542678]
[1748003922993,11.737,2554.5,2553.9,29.51457861]
[1748003923317,1.6315,2555.3,2554.0,8.0]
[1748003923491,13.3675,2555.3,2554.2,8.0]
[1748003923668,3.91398375,2555.0,2554.2,8.0]
[1748003923868,3.91382238,2555.1,2554.2,8.0]
[1748003924069,0.36208233,2555.2,2554.3,1.5599]
[1748003924268,0.36208233,2555.2,2555.1,3.91374114]
[1748003924466,0.36208233,2555.2,2555.1,25.599]
[1748003924671,0.46067826,2555.5,2555.2,3.91357099]
[1748003924874,0.46067826,2555.5,2555.1,25.599]
[1748003924875,5.54440767,2555.7,2555.1,29.51266998]
[1748003925092,1.6315,2555.7,2555.1,29.51264771]
[1748003925296,1.6315,2555.7,2555.1,25.599]
[1748003925297,0.3619716,2555.6,2555.1,25.599]
[1748003925617,4.27507672,2555.6,2555.1,25.599]
[1748003925777,3.91324761,2555.5,2555.1,25.599]